fUSD/lending_fUSD_20240708
["ID","MTS","AMOUNT","RATE_DAILY","PERIOD"]
[331488705,1720438446815,-500.0,0.00051506,120]
[331488706,1720438446872,-1000.0,0.00051506,120]
[331488707,1720438446929,-602.11,0.00051506,120]
[331488708,1720438446989,-3962.26,0.00051506,120]
[331488709,1720438447047,-816.01,0.00051506,120]
[331488710,1720438447100,-5967.11,0.00051506,120]
[331488711,1720438447157,-500.0,0.00051506,120]
[331488712,1720438447211,-500.0,0.00051506,120]
[331488713,1720438447265,-952.17,0.00051506,120]
[331488714,1720438447323,-3856.8,0.00051506,120]
[331488715,1720438447378,-1444.4,0.00051506,120]
[331488716,1720438447433,-4328.98,0.00051506,120]
[331488717,1720438447487,-602.68,0.00051506,120]
[331488718,1720438447540,-500.0,0.00051506,120]
[331488719,1720438447596,-500.0,0.00051506,120]
[331488720,1720438447652,-1667.53,0.00051506,120]
[331488721,1720438447709,-500.0,0.00051506,120]
[331488722,1720438447767,-4918.52,0.00051506,120]
[331488723,1720438447822,-1665.81,0.00051506,120]
[331488724,1720438447874,-500.0,0.00051506,120]
[331488725,1720438447926,-1892.85,0.00051506,120]
[331488726,1720438447979,-1343.01,0.00051506,120]
[331488727,1720438448032,-2033.08,0.00051506,120]
[331488728,1720438448087,-3737.99,0.00051506,120]
[331488729,1720438448139,-681.78,0.00051506,120]
[331488730,1720438448193,-8334.2,0.00051506,120]
[331488731,1720438448250,-2432.96,0.00051506,120]
[331488732,1720438448302,-500.0,0.00051506,120]
[331488733,1720438448360,-2303.71,0.00051506,120]
[331488734,1720438448413,-500.0,0.00051506,120]
[331488735,1720438448467,-500.0,0.00051506,120]
[331488736,1720438448522,-7113.69,0.00051506,120]
[331488737,1720438448578,-381.44939851,0.00051506,120]
[331488738,1720438448633,-2372.86,0.00051506,120]
[331488739,1720438448689,-6365.6,0.00051506,120]
[331488740,1720438448748,-3895.56,0.00051506,120]
[331488741,1720438448803,-500.0,0.00051506,120]
[331488742,1720438448856,-500.0,0.00051506,120]
[331488743,1720438448911,-4737.12,0.00051506,120]
[331488744,1720438448971,-4028.67,0.00051506,120]
[331488745,1720438449028,-2932.06,0.00051506,120]
[331488746,1720438449261,-3721.64,0.00051506,120]
[331488747,1720438449319,-9769.22,0.00051506,120]
[331488748,1720438449378,-579.46,0.00051506,120]
[331488749,1720438449438,-1491.25,0.00051506,120]
[331488750,1720438449500,-9789.62,0.00051506,120]
[331488751,1720438449562,-1519.45,0.00051506,120]
[331488752,1720438449623,-552.8,0.00051506,120]
[331488753,1720438449682,-500.0,0.00051506,120]
[331488754,1720438449742,-18403.09,0.00051506,120]
[331488755,1720438449800,-5134.91,0.00051506,120]
[331488756,1720438449857,-2497.28,0.00051506,120]
[331488757,1720438449915,-506.61,0.00051506,120]
[331488758,1720438449973,-1667.87,0.00051506,120]
[331488759,1720438450033,-1198.7,0.00051506,120]
[331488760,1720438450094,-14120.27,0.00051506,120]
[331488761,1720438450151,-5150.8,0.00051506,120]
[331488762,1720438450208,-8496.48,0.00051506,120]
[331488763,1720438450268,-666.9,0.00051506,120]
[331488764,1720438450324,-500.0,0.00051506,120]
[331488765,1720438450394,-77163.49,0.00051506,120]
[331488766,1720438450461,-1701.37,0.00051506,120]
[331488767,1720438450527,-500.0,0.00051506,120]
[331488768,1720438450592,-1695.49,0.00051506,120]
[331488769,1720438450659,-3671.69,0.00051506,120]
[331488770,1720438450725,-43789.77,0.00051506,120]
[331488771,1720438450784,-500.0,0.00051506,120]
[331488772,1720438450842,-744.56,0.00051506,120]
[331488773,1720438450901,-5882.08,0.00051506,120]
[331488774,1720438450959,-4253.18,0.00051506,120]
[331488775,1720438451017,-2648.44,0.00051506,120]
[331488776,1720438451073,-500.0,0.00051506,120]
[331488777,1720438451130,-2191.17,0.00051506,120]
[331488778,1720438451188,-500.0,0.00051506,120]
[331488779,1720438451244,-4023.3,0.00051506,120]
[331488780,1720438451301,-500.0,0.00051506,120]
[331488781,1720438451363,-1885.58,0.00051506,120]
[331488782,1720438451421,-162.01068449,0.0005152,60]
[331488783,1720438451481,-161.26799713,0.0005156,60]
[331488784,1720438451542,-866.74202253,0.0005156,60]
[331488785,1720438451599,-866.74202253,0.00051587,60]
[331488786,1720438451659,-227.81588159,0.00051662,60]
[331488787,1720438451718,-240.24352775,0.00051673,60]
[331488788,1720438451775,-400.17203166,0.00051678,60]
[331488789,1720438451834,-240.24352775,0.00051681,60]
[331488790,1720438451890,-866.74202253,0.00051756,60]
[331488791,1720438451947,-858.68,0.0005178,120]
[331488792,1720438452005,-1349.79,0.0005178,120]
[331488793,1720438452058,-502.55,0.0005178,120]
[331488794,1720438452116,-500.0,0.0005178,120]
[331488795,1720438452171,-500.0,0.0005178,120]
[331488796,1720438452224,-3020.56,0.0005178,120]
[331488797,1720438452280,-500.0,0.0005178,120]
[331488798,1720438452334,-500.0,0.0005178,120]
[331488799,1720438452389,-1293.82,0.0005178,120]
[331488800,1720438452445,-1674.53,0.0005178,120]
[331488801,1720438452501,-1078.52,0.0005178,120]
[331488802,1720438452558,-500.0,0.0005178,120]
[331488803,1720438452615,-834.62,0.0005178,120]
[331488804,1720438452667,-500.0,0.0005178,120]
[331488805,1720438452724,-625.62,0.0005178,120]
[331488806,1720438452780,-500.0,0.0005178,120]
[331488807,1720438452834,-1390.62,0.0005178,120]
[331488808,1720438452893,-1406.2,0.0005178,120]
[331488809,1720438452954,-500.0,0.0005178,120]
[331488810,1720438453012,-500.0,0.0005178,120]
[331488811,1720438453067,-500.0,0.0005178,120]
[331488812,1720438453119,-500.0,0.0005178,120]
[331488813,1720438453174,-669.87,0.0005178,120]
[331488814,1720438453231,-500.0,0.0005178,120]
[331488815,1720438453284,-500.0,0.0005178,120]
[331488816,1720438453336,-617.8,0.0005178,120]
[331488817,1720438453386,-728.82,0.0005178,120]
[331488818,1720438453436,-2399.28,0.0005178,120]
[331488819,1720438453492,-1434.06,0.0005178,120]
[331488820,1720438453546,-500.0,0.0005178,120]
[331488821,1720438453601,-510.34,0.0005178,120]
[331488822,1720438453655,-500.0,0.0005178,120]
[331488823,1720438453710,-2007.19,0.0005178,120]
[331488824,1720438453765,-1253.66,0.0005178,120]
[331488825,1720438453820,-1628.65,0.0005178,120]
[331488826,1720438453874,-1435.39,0.0005178,120]
[331488827,1720438453931,-2683.83,0.0005178,120]
[331488828,1720438453988,-500.0,0.0005178,120]
[331488829,1720438454043,-1226.3,0.0005178,120]
[331488830,1720438454099,-856.13,0.0005178,120]
[331488831,1720438454160,-1397.31,0.0005178,120]
[331488832,1720438454216,-602.51,0.0005178,120]
[331488833,1720438454274,-667.55,0.0005178,120]
[331488834,1720438454334,-500.0,0.0005178,120]
[331488835,1720438454391,-1620.69,0.0005178,120]
[331488836,1720438454448,-812.96,0.0005178,120]
[331488837,1720438454507,-2144.73,0.0005178,120]
[331488838,1720438454565,-3560.63,0.0005178,120]
[331488839,1720438454624,-1545.37,0.0005178,120]
[331488840,1720438454684,-500.0,0.0005178,120]
[331488841,1720438454740,-500.0,0.0005178,120]
[331488842,1720438454795,-505.85,0.0005178,120]
[331488843,1720438454850,-500.0,0.0005178,120]
[331488844,1720438454907,-801.42,0.0005178,120]
[331488845,1720438454965,-500.0,0.0005178,120]
[331488846,1720438455018,-3858.43,0.0005178,120]
[331488847,1720438455073,-2117.51,0.0005178,120]
[331488848,1720438455127,-500.0,0.0005178,120]
[331488849,1720438455339,-4446.26,0.0005178,120]
[331488850,1720438455393,-500.0,0.0005178,120]
[331488851,1720438455446,-737.86,0.0005178,120]
[331488852,1720438455504,-564.21,0.0005178,120]
[331488853,1720438455560,-500.0,0.0005178,120]
[331488854,1720438455612,-988.15,0.0005178,120]
[331488855,1720438455668,-6909.46,0.0005178,120]
[331488856,1720438455723,-6124.77,0.0005178,120]
[331488857,1720438455776,-7434.29,0.0005178,120]
[331488858,1720438455831,-1564.94,0.0005178,120]
[331488859,1720438455884,-3097.92,0.0005178,120]
[331488860,1720438455939,-500.0,0.0005178,120]
[331488861,1720438455995,-2569.11,0.0005178,120]
[331488862,1720438456046,-500.0,0.0005178,120]
[331488863,1720438456100,-4977.25,0.0005178,120]
[331488864,1720438456157,-817.49,0.0005178,120]
[331488865,1720438456209,-931.33,0.0005178,120]
[331488866,1720438456266,-6557.78,0.0005178,120]
[331488867,1720438456320,-8047.98,0.0005178,120]
[331488868,1720438456374,-4890.76,0.0005178,120]
[331488869,1720438456431,-926.07,0.0005178,120]
[331488870,1720438456489,-634.86,0.0005178,120]
[331488871,1720438456545,-5071.97,0.0005178,120]
[331488872,1720438456601,-5197.47,0.0005178,120]
[331488873,1720438456655,-500.0,0.0005178,120]
[331488874,1720438456712,-12824.58,0.0005178,120]
[331488875,1720438456769,-737.63,0.0005178,120]
[331488876,1720438456823,-5000.69,0.0005178,120]
[331488877,1720438456878,-500.0,0.0005178,120]
[331488878,1720438456932,-979.51,0.0005178,120]
[331488879,1720438456985,-1089.79,0.0005178,120]
[331488880,1720438457038,-500.0,0.0005178,120]
[331488881,1720438457092,-1000.0,0.0005178,120]
[331488882,1720438457144,-602.11,0.0005178,120]
[331488883,1720438457198,-3962.26,0.0005178,120]
[331488884,1720438457252,-816.01,0.0005178,120]
[331488885,1720438457304,-5967.11,0.0005178,120]
[331488886,1720438457362,-500.0,0.0005178,120]
[331488887,1720438457414,-500.0,0.0005178,120]
[331488888,1720438457470,-3856.8,0.0005178,120]
[331488889,1720438457526,-952.17,0.0005178,120]
[331488890,1720438457581,-1444.4,0.0005178,120]
[331488891,1720438457639,-4328.98,0.0005178,120]
[331488892,1720438457697,-602.68,0.0005178,120]
[331488893,1720438457752,-500.0,0.0005178,120]
[331488894,1720438457809,-465.53772105,0.0005178,120]
[331488895,1720438457865,-1667.53,0.0005178,120]
[331488896,1720438457920,-500.0,0.0005178,120]
[331488897,1720438457976,-4918.52,0.0005178,120]
[331488898,1720438458029,-1665.81,0.0005178,120]
[331488899,1720438458080,-500.0,0.0005178,120]
[331488900,1720438458133,-1892.85,0.0005178,120]
[331488901,1720438458190,-1343.01,0.0005178,120]
[331488902,1720438458243,-2033.08,0.0005178,120]
[331488903,1720438458298,-3737.99,0.0005178,120]
[331488904,1720438458350,-681.78,0.0005178,120]
[331488905,1720438458408,-8334.2,0.0005178,120]
[331488906,1720438458462,-2432.96,0.0005178,120]
[331488907,1720438458515,-162.96147446,0.0005178,120]
[331488908,1720438458569,-2303.71,0.0005178,120]
[331488909,1720438458623,-500.0,0.0005178,120]
[331488910,1720438458677,-500.0,0.0005178,120]
[331488911,1720438458735,-7113.69,0.0005178,120]
[331488912,1720438458790,-2372.86,0.0005178,120]
[331488913,1720438458847,-6365.6,0.0005178,120]
[331488914,1720438458904,-3895.56,0.0005178,120]
[331488915,1720438458961,-500.0,0.0005178,120]
[331488916,1720438459018,-4737.12,0.0005178,120]
[331488917,1720438459072,-500.0,0.0005178,120]
[331488918,1720438459125,-4028.67,0.0005178,120]
[331488919,1720438459181,-2932.06,0.0005178,120]
[331488920,1720438459239,-3721.64,0.0005178,120]
[331488921,1720438459295,-9769.22,0.0005178,120]
[331488922,1720438459353,-579.46,0.0005178,120]
[331488923,1720438459412,-1491.25,0.0005178,120]
[331488924,1720438459463,-9789.62,0.0005178,120]
[331488925,1720438459519,-1519.45,0.0005178,120]
[331488926,1720438459575,-552.8,0.0005178,120]
[331488927,1720438459632,-18403.09,0.0005178,120]
[331488928,1720438459690,-5134.91,0.0005178,120]
[331488929,1720438459747,-500.0,0.0005178,120]
[331488930,1720438459801,-2497.28,0.0005178,120]
[331488931,1720438459859,-506.61,0.0005178,120]
[331488932,1720438459915,-1667.87,0.0005178,120]
[331488933,1720438459971,-1198.7,0.0005178,120]
[331488934,1720438460029,-14120.27,0.0005178,120]
[331488935,1720438460081,-5150.8,0.0005178,120]
[331488936,1720438460135,-8496.48,0.0005178,120]
[331488937,1720438460189,-666.9,0.0005178,120]
[331488938,1720438460243,-500.0,0.0005178,120]
[331488939,1720438460296,-77163.49,0.0005178,120]
[331488940,1720438460352,-1701.37,0.0005178,120]
[331488941,1720438460412,-500.0,0.0005178,120]
[331488942,1720438460464,-1695.49,0.0005178,120]
[331488943,1720438460519,-3671.69,0.0005178,120]
[331488944,1720438460576,-43789.77,0.0005178,120]
[331488945,1720438460630,-500.0,0.0005178,120]
[331488946,1720438460686,-744.56,0.0005178,120]
[331488947,1720438460741,-5882.08,0.0005178,120]
[331488948,1720438460796,-4253.18,0.0005178,120]
[331488949,1720438460851,-2648.44,0.0005178,120]
[331488950,1720438460908,-500.0,0.0005178,120]
[331488951,1720438460964,-2191.17,0.0005178,120]
[331488952,1720438461019,-500.0,0.0005178,120]
[331488953,1720438461254,-4023.3,0.0005178,120]
[331488954,1720438461309,-500.0,0.0005178,120]
[331488955,1720438461368,-1885.58,0.0005178,120]
[331488956,1720438461420,-155.26727901,0.00051794,60]
[331488957,1720438461475,-400.17203166,0.00051816,60]
[331488958,1720438461532,-1941.21439951,0.0005183,60]
[331488959,1720438461588,-666.47884154,0.00051837,60]
[331488960,1720438461642,-1268.81765468,0.00051861,60]
[331488961,1720438461700,-257.56335541,0.00051903,60]
[331488962,1720438461759,-1358.50662563,0.00051937,60]
[331488963,1720438461814,-218.31296591,0.00051966,60]
[331488964,1720438461873,-155.26727919,0.00051991,60]
[331488965,1720438461929,-400.17203166,0.00052004,60]
[331488966,1720438461984,-1358.50662563,0.00052021,60]
[331488967,1720438462039,-320.63655389,0.00052042,60]
[331488968,1720438462092,-893.27,0.00052054,120]
[331488969,1720438462146,-687.27,0.00052054,120]
[331488970,1720438462201,-500.0,0.00052054,120]
[331488971,1720438462255,-500.0,0.00052054,120]
[331488972,1720438462308,-578.06,0.00052054,120]
[331488973,1720438462365,-500.0,0.00052054,120]
[331488974,1720438462419,-500.0,0.00052054,120]
[331488975,1720438462476,-929.58,0.00052054,120]
[331488976,1720438462532,-737.43,0.00052054,120]
[331488977,1720438462586,-628.14,0.00052054,120]
[331488978,1720438462641,-500.0,0.00052054,120]
[331488979,1720438462696,-604.87,0.00052054,120]
[331488980,1720438462750,-500.0,0.00052054,120]
[331488981,1720438462808,-500.0,0.00052054,120]
[331488982,1720438462862,-3249.91,0.00052054,120]
[331488983,1720438462917,-575.43,0.00052054,120]
[331488984,1720438462972,-1415.03,0.00052054,120]
[331488985,1720438463023,-500.0,0.00052054,120]
[331488986,1720438463076,-606.58,0.00052054,120]
[331488987,1720438463132,-500.0,0.00052054,120]
[331488988,1720438463182,-817.76,0.00052054,120]
[331488989,1720438463234,-500.0,0.00052054,120]
[331488990,1720438463286,-500.0,0.00052054,120]
[331488991,1720438463338,-500.0,0.00052054,120]
[331488992,1720438463392,-500.0,0.00052054,120]
[331488993,1720438463448,-500.0,0.00052054,120]
[331488994,1720438463515,-1428.1,0.00052054,120]
[331488995,1720438463576,-500.0,0.00052054,120]
[331488996,1720438463635,-612.18,0.00052054,120]
[331488997,1720438463694,-592.08,0.00052054,120]
[331488998,1720438463755,-638.54,0.00052054,120]
[331488999,1720438463810,-1691.69,0.00052054,120]
[331489000,1720438463868,-424.59330913,0.00052054,120]
[331489001,1720438463923,-500.0,0.00052054,120]
[331489002,1720438463977,-500.0,0.00052054,120]
[331489003,1720438464032,-599.01,0.00052054,120]
[331489004,1720438464090,-500.0,0.00052054,120]
[331489005,1720438464145,-500.0,0.00052054,120]
[331489006,1720438464203,-500.0,0.00052054,120]
[331489007,1720438464263,-588.73,0.00052054,120]
[331489008,1720438464319,-500.0,0.00052054,120]
[331489009,1720438464375,-500.0,0.00052054,120]
[331489010,1720438464432,-527.34,0.00052054,120]
[331489011,1720438464486,-500.0,0.00052054,120]
[331489012,1720438464544,-500.0,0.00052054,120]
[331489013,1720438464601,-500.0,0.00052054,120]
[331489014,1720438464657,-500.0,0.00052054,120]
[331489015,1720438464715,-500.0,0.00052054,120]
[331489016,1720438464773,-500.0,0.00052054,120]
[331489017,1720438464827,-500.0,0.00052054,120]
[331489018,1720438464887,-2303.83,0.00052054,120]
[331489019,1720438464942,-1030.01,0.00052054,120]
[331489020,1720438464995,-500.0,0.00052054,120]
[331489021,1720438465054,-1129.3,0.00052054,120]
[331489022,1720438465109,-500.0,0.00052054,120]
[331489023,1720438465163,-500.0,0.00052054,120]
[331489024,1720438465220,-500.0,0.00052054,120]
[331489025,1720438465275,-537.46,0.00052054,120]
[331489026,1720438465328,-779.78,0.00052054,120]
[331489027,1720438465384,-500.0,0.00052054,120]
[331489028,1720438465441,-745.19,0.00052054,120]
[331489029,1720438465494,-731.02,0.00052054,120]
[331489030,1720438465551,-500.0,0.00052054,120]
[331489031,1720438465606,-503.7552669,0.00052054,120]
[331489032,1720438465659,-500.0,0.00052054,120]
[331489033,1720438465719,-656.72,0.00052054,120]
[331489034,1720438465772,-500.0,0.00052054,120]
[331489035,1720438465827,-1651.75,0.00052054,120]
[331489036,1720438465881,-500.0,0.00052054,120]
[331489037,1720438465934,-1102.07,0.00052054,120]
[331489038,1720438465990,-500.0,0.00052054,120]
[331489039,1720438466045,-500.0,0.00052054,120]
[331489040,1720438466097,-1550.67,0.00052054,120]
[331489041,1720438466153,-500.0,0.00052054,120]
[331489042,1720438466206,-500.0,0.00052054,120]
[331489043,1720438466261,-500.0,0.00052054,120]
[331489044,1720438466315,-1404.03,0.00052054,120]
[331489045,1720438466371,-500.0,0.00052054,120]
[331489046,1720438466426,-500.0,0.00052054,120]
[331489047,1720438466482,-804.05,0.00052054,120]
[331489048,1720438466535,-500.0,0.00052054,120]
[331489049,1720438466589,-536.3,0.00052054,120]
[331489050,1720438466643,-968.64,0.00052054,120]
[331489051,1720438466695,-1082.19,0.00052054,120]
[331489052,1720438466750,-500.0,0.00052054,120]
[331489053,1720438466806,-1570.5,0.00052054,120]
[331489054,1720438466860,-1935.41,0.00052054,120]
[331489055,1720438466914,-500.0,0.00052054,120]
[331489056,1720438466969,-5085.83,0.00052054,120]
[331489057,1720438467188,-500.0,0.00052054,120]
[331489058,1720438467242,-500.0,0.00052054,120]
[331489059,1720438467294,-500.0,0.00052054,120]
[331489060,1720438467354,-771.26,0.00052054,120]
[331489061,1720438467412,-813.82,0.00052054,120]
[331489062,1720438467471,-500.0,0.00052054,120]
[331489063,1720438467531,-1256.69,0.00052054,120]
[331489064,1720438467584,-507.53835302,0.00052054,120]
[331489065,1720438467638,-1326.11,0.00052054,120]
[331489066,1720438467693,-500.0,0.00052054,120]
[331489067,1720438467747,-530.51,0.00052054,120]
[331489068,1720438467802,-500.0,0.00052054,120]
[331489069,1720438467856,-941.75,0.00052054,120]
[331489070,1720438467908,-500.0,0.00052054,120]
[331489071,1720438467965,-500.0,0.00052054,120]
[331489072,1720438468020,-500.0,0.00052054,120]
[331489073,1720438468073,-500.0,0.00052054,120]
[331489074,1720438468129,-915.13,0.00052054,120]
[331489075,1720438468182,-511.24,0.00052054,120]
[331489076,1720438468234,-2062.26,0.00052054,120]
[331489077,1720438468288,-2547.29,0.00052054,120]
[331489078,1720438468342,-500.0,0.00052054,120]
[331489079,1720438468398,-1773.39,0.00052054,120]
[331489080,1720438468454,-847.59,0.00052054,120]
[331489081,1720438468511,-722.73,0.00052054,120]
[331489082,1720438468568,-500.0,0.00052054,120]
[331489083,1720438468626,-962.79,0.00052054,120]
[331489084,1720438468686,-1826.77,0.00052054,120]
[331489085,1720438468743,-500.0,0.00052054,120]
[331489086,1720438468800,-321.6704058,0.00052054,120]
[331489087,1720438468860,-1768.04,0.00052054,120]
[331489088,1720438468918,-1447.56,0.00052054,120]
[331489089,1720438468982,-4590.57,0.00052054,120]
[331489090,1720438469041,-1801.6,0.00052054,120]
[331489091,1720438469100,-500.0,0.00052054,120]
[331489092,1720438469160,-500.0,0.00052054,120]
[331489093,1720438469219,-2861.76,0.00052054,120]
[331489094,1720438469278,-1122.87,0.00052054,120]
[331489095,1720438469339,-526.91,0.00052054,120]
[331489096,1720438469402,-500.0,0.00052054,120]
[331489097,1720438469465,-314.77,0.00052054,120]
[331489098,1720438469528,-500.0,0.00052054,120]
[331489099,1720438469588,-686.39,0.00052054,120]
[331489100,1720438469651,-1136.27,0.00052054,120]
[331489101,1720438469713,-3164.35,0.00052054,120]
[331489102,1720438469771,-505.54,0.00052054,120]
[331489103,1720438469830,-1162.49,0.00052054,120]
[331489104,1720438469891,-1906.95,0.00052054,120]
[331489105,1720438469951,-500.0,0.00052054,120]
[331489106,1720438470014,-1298.4,0.00052054,120]
[331489107,1720438470075,-1181.68,0.00052054,120]
[331489108,1720438470135,-500.0,0.00052054,120]
[331489109,1720438470198,-2349.1,0.00052054,120]
[331489110,1720438470259,-811.45,0.00052054,120]
[331489111,1720438470317,-2038.75,0.00052054,120]
[331489112,1720438470378,-759.35,0.00052054,120]
[331489113,1720438470437,-1664.25,0.00052054,120]
[331489114,1720438470496,-858.68,0.00052054,120]
[331489115,1720438470557,-1349.79,0.00052054,120]
[331489116,1720438470616,-502.55,0.00052054,120]
[331489117,1720438470676,-500.0,0.00052054,120]
[331489118,1720438470739,-500.0,0.00052054,120]
[331489119,1720438470805,-3020.56,0.00052054,120]
[331489120,1720438470865,-500.0,0.00052054,120]
[331489121,1720438470925,-500.0,0.00052054,120]
[331489122,1720438470985,-1293.82,0.00052054,120]
[331489123,1720438471043,-1674.53,0.00052054,120]
[331489124,1720438471104,-1078.52,0.00052054,120]
[331489125,1720438471161,-460.2,0.00052054,120]
[331489126,1720438471220,-834.62,0.00052054,120]
[331489127,1720438471276,-500.0,0.00052054,120]
[331489128,1720438471333,-625.62,0.00052054,120]
[331489129,1720438471392,-500.0,0.00052054,120]
[331489130,1720438471451,-833.33,0.00052054,120]
[331489131,1720438471508,-1390.62,0.00052054,120]
[331489132,1720438471566,-1406.2,0.00052054,120]
[331489133,1720438471624,-500.0,0.00052054,120]
[331489134,1720438471679,-500.0,0.00052054,120]
[331489135,1720438471736,-228.38509576,0.00052054,120]
[331489136,1720438471791,-500.0,0.00052054,120]
[331489137,1720438471847,-669.87,0.00052054,120]
[331489138,1720438471902,-500.0,0.00052054,120]
[331489139,1720438471956,-500.0,0.00052054,120]
[331489140,1720438472010,-617.8,0.00052054,120]
[331489141,1720438472063,-728.82,0.00052054,120]
[331489142,1720438472114,-2399.28,0.00052054,120]
[331489143,1720438472168,-1434.06,0.00052054,120]
[331489144,1720438472219,-500.0,0.00052054,120]
[331489145,1720438472271,-510.34,0.00052054,120]
[331489146,1720438472325,-500.0,0.00052054,120]
[331489147,1720438472377,-2007.19,0.00052054,120]
[331489148,1720438472431,-1253.66,0.00052054,120]
[331489149,1720438472486,-1628.65,0.00052054,120]
[331489150,1720438472538,-1435.39,0.00052054,120]
[331489151,1720438472598,-2683.83,0.00052054,120]
[331489152,1720438472656,-500.0,0.00052054,120]
[331489153,1720438472714,-1226.3,0.00052054,120]
[331489154,1720438472769,-856.13,0.00052054,120]
[331489155,1720438472825,-1397.31,0.00052054,120]
[331489156,1720438472880,-602.51,0.00052054,120]
[331489157,1720438472941,-667.55,0.00052054,120]
[331489158,1720438473000,-500.0,0.00052054,120]
[331489159,1720438473061,-1620.69,0.00052054,120]
[331489160,1720438473118,-812.96,0.00052054,120]
[331489161,1720438473380,-2144.73,0.00052054,120]
[331489162,1720438473434,-3560.63,0.00052054,120]
[331489163,1720438473488,-1545.37,0.00052054,120]
[331489164,1720438473544,-500.0,0.00052054,120]
[331489165,1720438473601,-500.0,0.00052054,120]
[331489166,1720438473657,-505.85,0.00052054,120]
[331489167,1720438473713,-500.0,0.00052054,120]
[331489168,1720438473766,-801.42,0.00052054,120]
[331489169,1720438473823,-500.0,0.00052054,120]
[331489170,1720438473877,-3858.43,0.00052054,120]
[331489171,1720438473936,-500.0,0.00052054,120]
[331489172,1720438473995,-4446.26,0.00052054,120]
[331489173,1720438474050,-500.0,0.00052054,120]
[331489174,1720438474106,-737.86,0.00052054,120]
[331489175,1720438474163,-564.21,0.00052054,120]
[331489176,1720438474218,-229.03244384,0.00052054,120]
[331489177,1720438474274,-988.15,0.00052054,120]
[331489178,1720438474331,-6909.46,0.00052054,120]
[331489179,1720438474389,-6124.77,0.00052054,120]
[331489180,1720438474448,-7434.29,0.00052054,120]
[331489181,1720438474507,-1564.94,0.00052054,120]
[331489182,1720438474566,-3097.92,0.00052054,120]
[331489183,1720438474625,-500.0,0.00052054,120]
[331489184,1720438474686,-2569.11,0.00052054,120]
[331489185,1720438474744,-4977.25,0.00052054,120]
[331489186,1720438474799,-500.0,0.00052054,120]
[331489187,1720438474857,-817.49,0.00052054,120]
[331489188,1720438474911,-931.33,0.00052054,120]
[331489189,1720438474972,-6557.78,0.00052054,120]
[331489190,1720438475034,-8047.98,0.00052054,120]
[331489191,1720438475092,-4890.76,0.00052054,120]
[331489192,1720438475147,-926.07,0.00052054,120]
[331489193,1720438475203,-634.86,0.00052054,120]
[331489194,1720438475261,-5071.97,0.00052054,120]
[331489195,1720438475318,-5197.47,0.00052054,120]
[331489196,1720438475376,-500.0,0.00052054,120]
[331489197,1720438475431,-12824.58,0.00052054,120]
[331489198,1720438475489,-5000.69,0.00052054,120]
[331489199,1720438475547,-737.63,0.00052054,120]
[331489200,1720438475604,-500.0,0.00052054,120]
[331489201,1720438475661,-979.51,0.00052054,120]
[331489202,1720438475721,-1089.79,0.00052054,120]
[331489203,1720438475778,-500.0,0.00052054,120]
[331489204,1720438475834,-1000.0,0.00052054,120]